[Event "Championnat d'Europe Rapide"]
[Date "2024.12.07"]
[White "Cvitan, Ognjen"]
[Black "Pezelj, Sinisa"]
[WhiteElo "2413"]
[BlackElo "2201"]
[Round "3.47"]
[Result "1-0"]
[TimeControl "900+10"]

1. d4 {[%emt 00:00:02] [%clk 00:15:17]} e6 {[%emt 00:00:09] [%clk 00:15:12]} 2.
e4 {[%emt 00:00:11] [%clk 00:15:15]} d5 {[%emt 00:00:05] [%clk 00:15:18]} 3.
exd5 {[%emt 00:00:04] [%clk 00:15:21]} exd5 {[%emt 00:00:02] [%clk 00:15:25]} 4.
Nf3 {[%emt 00:00:04] [%clk 00:15:26]} Nf6 {[%emt 00:00:05] [%clk 00:15:31]} 5.
Bd3 {[%emt 00:00:03] [%clk 00:15:33]} Bg4 {[%emt 00:00:27] [%clk 00:15:15]} 6.
O-O {[%emt 00:00:16] [%clk 00:15:27]} Be7 {[%emt 00:00:01] [%clk 00:15:23]} 7.
Re1 {[%emt 00:00:21] [%clk 00:15:16]} O-O {[%emt 00:00:14] [%clk 00:15:20]} 8.
Bg5 {[%emt 00:00:18] [%clk 00:15:08]} h6 {[%emt 00:00:57] [%clk 00:14:34]} 9.
Bh4 {[%emt 00:00:07] [%clk 00:15:10]} Nbd7 {[%emt 00:00:54] [%clk 00:13:50]} 10.
Nbd2 {[%emt 00:00:11] [%clk 00:15:09]} c5 {[%emt 00:00:09] [%clk 00:13:51]} 11.
c3 {[%emt 00:00:25] [%clk 00:14:54]} Re8 {[%emt 00:01:58] [%clk 00:12:04]} 12.
h3 {[%emt 00:02:18]} Be6 {[%clk 00:11:00]} 13. dxc5 {[%emt 00:03:36] [%clk
00:10:33]} Nxc5 {[%emt 00:00:32] [%clk 00:10:39]} 14. Bb5 {[%emt 00:00:07] [%clk
00:10:36]} Bd7 {[%emt 00:00:26] [%clk 00:10:23]} 15. Bxd7 {[%emt 00:00:05] [%clk
00:10:41]} Nfxd7 {[%emt 00:00:05] [%clk 00:10:28]} 16. Bxe7 {[%emt 00:00:32]
[%clk 00:10:18]} Rxe7 {[%emt 00:00:02] [%clk 00:10:36]} 17. Rxe7 {[%emt
00:00:08] [%clk 00:10:20]} Qxe7 {[%emt 00:00:02] [%clk 00:10:44]} 18. Nb3 {[%emt
00:00:03] [%clk 00:10:28]} Nf6 {[%emt 00:00:31] [%clk 00:10:23]} 19. Nxc5 {[%emt
00:00:14] [%clk 00:10:24]} Qxc5 {[%emt 00:00:02] [%clk 00:10:31]} 20. Qb3 {[%emt
00:00:20] [%clk 00:10:13]} b6 {[%emt 00:02:08] [%clk 00:08:34]} 21. Re1 {[%emt
00:00:11] [%clk 00:10:11]} Re8 {[%emt 00:00:59] [%clk 00:07:46]} 22. Rxe8+
{[%emt 00:00:20] [%clk 00:10:00]} Nxe8 {[%emt 00:00:02] [%clk 00:07:54]} 23. Qa4
{[%emt 00:00:26] [%clk 00:09:44]} Qe7 {[%emt 00:00:02] [%clk 00:08:03]} 24. Qf4
{[%emt 00:02:23] [%clk 00:07:31]} Nf6 {[%emt 00:01:45] [%clk 00:06:28]} 25. Qe5
{[%emt 00:00:32] [%clk 00:07:09]} Qxe5 {[%emt 00:00:29] [%clk 00:06:10]} 26.
Nxe5 {[%emt 00:00:01] [%clk 00:07:16]} Ne4 {[%emt 00:00:50] [%clk 00:05:30]} 27.
Nc6 {[%emt 00:00:15] [%clk 00:07:11]} Kf8 {[%emt 00:00:14] [%clk 00:05:27]} 28.
Nxa7 {[%emt 00:00:02] [%clk 00:07:19]} Nc5 {[%emt 00:00:05] [%clk 00:05:32]} 29.
Nb5 {[%emt 00:00:22] [%clk 00:07:05]} Ke7 {[%emt 00:00:10] [%clk 00:05:33]} 30.
b3 {[%emt 00:01:06] [%clk 00:06:10]} Nd3 {[%emt 00:00:11] [%clk 00:05:32]} 31.
Nd4 {[%emt 00:00:34] [%clk 00:05:46]} g6 {[%emt 00:00:30] [%clk 00:05:12]} 32.
Kf1 {[%emt 00:00:03] [%clk 00:05:53]} Nc1 {[%emt 00:00:05] [%clk 00:05:17]} 33.
Ke1 {[%emt 00:00:37] [%clk 00:05:27]} Nd3+ {[%emt 00:00:51] [%clk 00:04:36]} 34.
Ke2 {[%emt 00:00:05] [%clk 00:05:32]} Ne5 {[%emt 00:00:32] [%clk 00:04:14]} 35.
Ke3 {[%emt 00:00:41] [%clk 00:05:01]} Kd6 {[%emt 00:00:08] [%clk 00:04:16]} 36.
g4 {[%emt 00:00:53] [%clk 00:04:17]} Nd7 {[%emt 00:00:53] [%clk 00:03:34]} 37.
f3 {[%emt 00:00:04] [%clk 00:04:23]} Nc5 {[%emt 00:01:22] [%clk 00:02:22]} 38.
h4 {[%emt 00:00:13] [%clk 00:04:20]} Ke5 {[%emt 00:00:25] [%clk 00:02:08]} 39.
Nc6+ {[%emt 00:01:32] [%clk 00:02:58]} Kd6 {[%emt 00:00:04] [%clk 00:02:14]} 40.
Nb4 {[%emt 00:00:06] [%clk 00:03:02]} b5 {[%emt 00:00:22] [%clk 00:02:02]} 41.
Nc2 {[%emt 00:00:24] [%clk 00:02:47]} Nd7 {[%emt 00:00:57] [%clk 00:01:16]} 42.
Nb4 {[%emt 00:01:04] [%clk 00:01:53]} Nc5 {[%emt 00:00:07] [%clk 00:01:20]} 43.
Nd3 {[%emt 00:00:18] [%clk 00:01:44]} Nd7 {[%emt 00:00:03] [%clk 00:01:27]} 44.
Nf4 {[%emt 00:00:13] [%clk 00:01:41]} Ke5 {[%emt 00:00:56] [%clk 00:00:41]} 45.
h5 {[%emt 00:00:10] [%clk 00:01:40]} g5 {[%emt 00:00:36] [%clk 00:00:14]} 46.
Ne2 {[%emt 00:00:16] [%clk 00:01:34]} f5 {[%emt 00:00:01] [%clk 00:00:23]} 47.
Nd4 {[%emt 00:00:07] [%clk 00:01:37]} f4+ {[%emt 00:00:05] [%clk 00:00:29]} 48.
Ke2 {[%emt 00:00:12] [%clk 00:01:34]} b4 {[%emt 00:00:08] [%clk 00:00:31]} 49.
Nc6+ {[%emt 00:00:02] [%clk 00:01:42]} Kd6 {[%emt 00:00:01] [%clk 00:00:40]} 50.
Nxb4 {[%emt 00:00:01] [%clk 00:01:51]} 1-0

[Site "Europe Echecs"]

[Event "Championnat d'Europe Rapide"]
[Date "2024.12.07"]
[White "Druckenthaner, Andreas"]
[Black "Boyer, Mahel"]
[WhiteElo "2206"]
[BlackElo "2526"]
[Round "3.48"]
[Result "0-1"]
[TimeControl "900+10"]

1. e4 {[%emt 00:00:03] [%clk 00:15:16]} g6 {[%emt 00:00:02] [%clk 00:15:19]} 2.
d4 {[%emt 00:00:03] [%clk 00:15:23]} Bg7 {[%emt 00:00:02] [%clk 00:15:27]} 3.
Nf3 {[%emt 00:00:04] [%clk 00:15:28]} d6 {[%emt 00:00:03] [%clk 00:15:35]} 4.
Bc4 {[%emt 00:00:05] [%clk 00:15:32]} Nf6 {[%emt 00:00:02] [%clk 00:15:43]} 5.
Nbd2 {[%emt 00:00:09] [%clk 00:15:33]} O-O {[%emt 00:00:04] [%clk 00:15:49]} 6.
c3 {[%emt 00:00:10] [%clk 00:15:33]} Nxe4 {[%emt 00:00:39] [%clk 00:15:20]} 7.
Bxf7+ {[%emt 00:00:03] [%clk 00:15:39]} Rxf7 {[%emt 00:00:02] [%clk 00:15:29]}
8. Nxe4 {[%emt 00:00:02] [%clk 00:15:47]} h6 {[%emt 00:00:12] [%clk 00:15:27]}
9. h3 {[%emt 00:00:09] [%clk 00:15:47]} Qf8 {[%emt 00:00:16] [%clk 00:15:22]}
10. Be3 {[%emt 00:00:20] [%clk 00:15:37]} Nc6 {[%emt 00:00:14] [%clk 00:15:17]}
11. d5 {[%emt 00:00:36] [%clk 00:15:12]} Ne5 {[%emt 00:00:05] [%clk 00:15:22]}
12. Nxe5 {[%emt 00:00:11] [%clk 00:15:11]} Bxe5 {[%emt 00:00:02] [%clk
00:15:30]} 13. O-O {[%emt 00:00:50] [%clk 00:14:30]} c5 {[%emt 00:02:25] [%clk
00:13:16]} 14. dxc6 {[%emt 00:01:21] [%clk 00:13:20]} bxc6 {[%emt 00:00:02]
[%clk 00:13:25]} 15. Bd4 {[%emt 00:00:51] [%clk 00:12:38]} Qg7 {[%emt 00:01:24]
[%clk 00:12:10]} 16. f4 {[%emt 00:01:39] [%clk 00:11:10]} Bxd4+ {[%emt 00:00:03]
[%clk 00:12:18]} 17. Qxd4 {[%emt 00:00:03] [%clk 00:11:17]} Qxd4+ {[%emt
00:00:10] [%clk 00:12:17]} 18. cxd4 {[%emt 00:00:02] [%clk 00:11:26]} Rb8 {[%emt
00:00:01] [%clk 00:12:26]} 19. Rf2 {[%emt 00:01:05] [%clk 00:10:31]} Rb4 {[%emt
00:00:03] [%clk 00:12:32]} 20. Rd1 {[%emt 00:00:46] [%clk 00:09:55]} c5 {[%emt
00:00:07] [%clk 00:12:36]} 21. Nc3 {[%emt 00:01:48] [%clk 00:08:17]} Rxd4 {[%emt
00:01:33] [%clk 00:11:12]} 22. Rxd4 {[%emt 00:00:03] [%clk 00:08:25]} cxd4
{[%emt 00:00:01] [%clk 00:11:21]} 23. Nb5 {[%emt 00:00:28] [%clk 00:08:07]} d3
{[%emt 00:00:02] [%clk 00:11:28]} 24. Nxa7 {[%emt 00:00:23] [%clk 00:07:54]} Bd7
{[%emt 00:00:02] [%clk 00:11:36]} 25. b4 {[%emt 00:01:39] [%clk 00:06:26]} Rf5
{[%emt 00:03:03] [%clk 00:08:43]} 26. a3 {[%emt 00:01:07] [%clk 00:05:29]} g5
{[%emt 00:01:26] [%clk 00:07:27]} 27. fxg5 {[%emt 00:00:37] [%clk 00:05:02]}
Rxg5 {[%emt 00:00:13] [%clk 00:07:24]} 28. g4 {[%emt 00:02:14] [%clk 00:02:58]}
e5 {[%emt 00:04:48] [%clk 00:02:47]} 29. Rf6 {[%emt 00:00:51] [%clk 00:02:17]}
d5 {[%emt 00:00:08] [%clk 00:02:48]} 30. Rd6 {[%emt 00:00:31] [%clk 00:01:55]}
d4 {[%emt 00:01:08] [%clk 00:01:51]} 31. Kf2 {[%emt 00:00:03] [%clk 00:02:02]}
Ba4 {[%emt 00:00:20] [%clk 00:01:41]} 32. Ke1 {[%emt 00:00:11] [%clk 00:02:00]}
Rg7 {[%emt 00:00:01] [%clk 00:01:50]} 33. Ra6 {[%emt 00:00:26] [%clk 00:01:44]}
e4 {[%emt 00:01:14] [%clk 00:00:47]} 34. b5 {[%emt 00:01:23] [%clk 00:00:31]}
Bc2 {[%emt 00:00:36] [%clk 00:00:21]} 35. Kd2 {[%emt 00:00:25] [%clk 00:00:16]}
e3+ {[%emt 00:00:02] [%clk 00:00:29]} 36. Kc1 {[%clk 00:00:25]} Bb3 {[%emt
00:00:16]} 0-1

[Site "Europe Echecs"]

[Event "Championnat d'Europe Rapide"]
[Date "2024.12.07"]
[White "Horvath, Dominik"]
[Black "Suljovic, Sulejman"]
[WhiteElo "2542"]
[BlackElo "2182"]
[Round "3.49"]
[Result "1-0"]
[TimeControl "900+10"]

1. Nf3 {[%emt 00:23:42] [%clk 00:15:18]} e6 {[%emt 00:00:49] [%clk 00:14:32]} 2.
g3 {[%emt 00:00:04] [%clk 00:15:23]} b6 {[%clk 00:14:42]} 3. Bg2 {[%emt
00:00:03] [%clk 00:15:32]} Bb7 {[%clk 00:14:51]} 4. O-O {[%emt 00:00:02] [%clk
00:15:39]} Nf6 {[%emt 00:00:09] [%clk 00:14:52]} 5. c4 {[%emt 00:00:02] [%clk
00:15:47]} d5 {[%emt 00:00:05] [%clk 00:14:58]} 6. cxd5 {[%emt 00:00:13] [%clk
00:15:45]} Nxd5 {[%emt 00:00:21] [%clk 00:14:46]} 7. d4 {[%emt 00:00:54] [%clk
00:15:00]} Nf6 {[%emt 00:00:56] [%clk 00:14:01]} 8. Nc3 {[%emt 00:00:14] [%clk
00:14:56]} Be7 {[%emt 00:00:06] [%clk 00:14:06]} 9. Re1 {[%emt 00:00:23] [%clk
00:14:42]} O-O {[%emt 00:00:39] [%clk 00:13:37]} 10. e4 {[%clk 00:14:51]} Nbd7
{[%emt 00:00:19] [%clk 00:13:28]} 11. Bf4 {[%emt 00:00:07] [%clk 00:14:53]} a6
{[%emt 00:01:02] [%clk 00:12:37]} 12. a3 {[%emt 00:00:16] [%clk 00:14:47]} Re8
{[%emt 00:00:14] [%clk 00:12:33]} 13. Rc1 {[%emt 00:00:41] [%clk 00:14:15]} Nf8
{[%emt 00:00:12] [%clk 00:12:32]} 14. Ne5 {[%emt 00:00:15] [%clk 00:14:10]} Ng6
{[%emt 00:00:20] [%clk 00:12:22]} 15. Nxg6 {[%emt 00:00:01] [%clk 00:14:19]}
hxg6 {[%emt 00:00:05] [%clk 00:12:27]} 16. b4 {[%emt 00:00:10] [%clk 00:14:18]}
Nh5 {[%emt 00:00:29] [%clk 00:12:09]} 17. Be3 {[%emt 00:00:08] [%clk 00:14:20]}
a5 {[%emt 00:00:24] [%clk 00:11:56]} 18. Qb3 {[%clk 00:14:29]} axb4 {[%emt
00:00:05] [%clk 00:12:01]} 19. axb4 {[%emt 00:00:01] [%clk 00:14:37]} Nf6 {[%emt
00:00:33] [%clk 00:11:39]} 20. h3 {[%emt 00:00:11] [%clk 00:14:35]} Qd7 {[%emt
00:00:10] [%clk 00:11:40]} 21. Red1 {[%emt 00:00:29] [%clk 00:14:16]} Red8
{[%emt 00:00:09] [%clk 00:11:41]} 22. d5 {[%emt 00:00:07] [%clk 00:14:19]} exd5
{[%emt 00:00:14] [%clk 00:11:38]} 23. e5 {[%emt 00:00:01] [%clk 00:14:27]} Ne8
{[%emt 00:00:50] [%clk 00:10:58]} 24. Nxd5 {[%emt 00:00:04] [%clk 00:14:33]}
Bxd5 {[%emt 00:01:44] [%clk 00:09:24]} 25. Bxd5 {[%emt 00:00:02] [%clk
00:14:40]} Qa4 {[%emt 00:00:01] [%clk 00:09:34]} 26. Bxf7+ {[%emt 00:01:12]
[%clk 00:13:38]} Kf8 {[%emt 00:00:26] [%clk 00:09:18]} 27. Qxa4 {[%emt 00:01:59]
[%clk 00:11:49]} Rxa4 {[%emt 00:00:03] [%clk 00:09:26]} 28. Bxg6 {[%emt
00:00:01] [%clk 00:11:57]} Rxd1+ {[%emt 00:00:32] [%clk 00:09:05]} 29. Rxd1
{[%clk 00:12:07]} Rxb4 {[%emt 00:00:14]} 30. Ra1 {[%clk 00:12:15]} Bd8 {[%emt
00:01:11] [%clk 00:08:02]} 31. Ra8 {[%emt 00:00:02] [%clk 00:12:23]} 1-0

[Site "Europe Echecs"]

[Event "Championnat d'Europe Rapide"]
[Date "2024.12.07"]
[White "Tisma, Ivan"]
[Black "Saraci, Nderim"]
[WhiteElo "1967"]
[BlackElo "2431"]
[Round "3.50"]
[Result "1/2-1/2"]
[TimeControl "900+10"]

1. Nf3 {[%emt 00:00:04] [%clk 00:15:16]} Nf6 {[%emt 00:00:03] [%clk 00:15:16]}
2. c4 {[%emt 00:00:03] [%clk 00:15:23]} g6 {[%emt 00:00:04] [%clk 00:15:22]} 3.
Nc3 {[%emt 00:00:03] [%clk 00:15:30]} Bg7 {[%emt 00:00:02] [%clk 00:15:30]} 4.
g3 {[%emt 00:00:03] [%clk 00:15:37]} O-O {[%emt 00:00:07] [%clk 00:15:33]} 5.
Bg2 {[%emt 00:00:02] [%clk 00:15:45]} c6 {[%emt 00:00:19] [%clk 00:15:25]} 6.
O-O {[%emt 00:00:07] [%clk 00:15:47]} d5 {[%emt 00:00:03] [%clk 00:15:32]} 7.
cxd5 {[%emt 00:00:39] [%clk 00:15:18]} cxd5 {[%emt 00:00:06] [%clk 00:15:37]} 8.
d4 {[%emt 00:00:05] [%clk 00:15:23]} Nc6 {[%emt 00:01:09] [%clk 00:14:38]} 9.
Bf4 {[%emt 00:00:51] [%clk 00:14:41]} Bf5 {[%emt 00:01:52] [%clk 00:12:55]} 10.
Ne5 {[%emt 00:00:44] [%clk 00:14:08]} Rc8 {[%emt 00:00:12] [%clk 00:12:53]} 11.
Nxc6 {[%emt 00:00:59] [%clk 00:13:19]} Rxc6 {[%emt 00:01:25] [%clk 00:11:38]}
12. Rc1 {[%emt 00:00:16] [%clk 00:13:13]} Qd7 {[%emt 00:00:47] [%clk 00:11:02]}
13. Qb3 {[%emt 00:01:25] [%clk 00:11:58]} Bh3 {[%emt 00:01:59] [%clk 00:09:14]}
14. Nxd5 {[%emt 00:00:58] [%clk 00:11:10]} Bxg2 {[%emt 00:00:21] [%clk
00:09:02]} 15. Nxf6+ {[%emt 00:00:08] [%clk 00:11:12]} Bxf6 {[%emt 00:00:20]
[%clk 00:08:52]} 16. Kxg2 {[%emt 00:00:02] [%clk 00:11:20]} Rb6 {[%emt 00:00:17]
[%clk 00:08:45]} 17. Qc4 {[%emt 00:04:53] [%clk 00:06:38]} Rxb2 {[%emt 00:00:36]
[%clk 00:08:19]} 18. Bh6 {[%emt 00:00:16] [%clk 00:06:31]} Re8 {[%emt 00:01:00]
[%clk 00:07:30]} 19. d5 {[%emt 00:01:10] [%clk 00:05:31]} a5 {[%emt 00:02:15]
[%clk 00:05:24]} 20. a3 {[%emt 00:00:54] [%clk 00:04:47]} a4 {[%emt 00:01:10]
[%clk 00:04:24]} 21. Rfd1 {[%emt 00:00:05] [%clk 00:04:52]} Rb3 {[%emt 00:01:41]
[%clk 00:02:53]} 22. Rd3 {[%emt 00:00:35] [%clk 00:04:26]} Qb5 {[%emt 00:00:40]
[%clk 00:02:23]} 23. Qxb5 {[%emt 00:00:24] [%clk 00:04:12]} Rxb5 {[%emt
00:00:02] [%clk 00:02:31]} 24. Rc4 {[%emt 00:00:06] [%clk 00:04:17]} Ra8 {[%emt
00:00:09] [%clk 00:02:32]} 25. Bd2 {[%emt 00:00:50] [%clk 00:03:38]} Rb2 {[%emt
00:00:17] [%clk 00:02:24]} 26. Rb4 {[%emt 00:00:31] [%clk 00:03:18]} Kf8 {[%emt
00:00:58] [%clk 00:01:35]} 27. Rxb2 {[%emt 00:00:20] [%clk 00:03:08]} Bxb2
{[%emt 00:00:02] [%clk 00:01:43]} 28. Bb4 {[%emt 00:00:01] [%clk 00:03:17]} Be5
{[%emt 00:00:25] [%clk 00:01:28]} 29. d6 {[%emt 00:00:52] [%clk 00:02:36]} Bxd6
{[%emt 00:00:02] [%clk 00:01:37]} 30. Bxd6 {[%clk 00:02:45]} exd6 {[%clk
00:01:46]} 31. Rxd6 {[%emt 00:00:01] [%clk 00:02:54]} Rc8 {[%emt 00:00:32] [%clk
00:01:24]} 32. Rb6 {[%emt 00:00:05] [%clk 00:02:59]} Rc3 {[%emt 00:00:06] [%clk
00:01:28]} 33. Rxb7 {[%emt 00:00:03] [%clk 00:03:07]} Rxa3 {[%emt 00:00:05]
[%clk 00:01:33]} 34. e3 {[%emt 00:00:13] [%clk 00:03:03]} Rb3 {[%emt 00:00:13]
[%clk 00:01:30]} 35. Ra7 {[%emt 00:00:03] [%clk 00:03:11]} a3 {[%emt 00:00:02]
[%clk 00:01:39]} 36. h4 {[%emt 00:00:02] [%clk 00:03:19]} h5 {[%emt 00:00:02]
[%clk 00:01:46]} 37. Kf3 {[%emt 00:00:03] [%clk 00:03:26]} Ke8 {[%emt 00:00:30]
[%clk 00:01:26]} 38. Kg2 {[%emt 00:00:02] [%clk 00:03:34]} f6 {[%emt 00:00:29]
[%clk 00:01:08]} 39. Kf3 {[%emt 00:00:16] [%clk 00:03:28]} Kd8 {[%emt 00:00:05]
[%clk 00:01:13]} 40. Kf4 {[%emt 00:00:21] [%clk 00:03:17]} Kc8 {[%emt 00:00:06]
[%clk 00:01:17]} 41. f3 {[%emt 00:00:45] [%clk 00:02:43]} Kb8 {[%emt 00:00:01]
[%clk 00:01:25]} 42. Ra5 {[%emt 00:00:01] [%clk 00:02:52]} Kb7 {[%emt 00:00:03]
[%clk 00:01:33]} 43. g4 {[%emt 00:00:14] [%clk 00:02:48]} Kb6 {[%emt 00:00:02]
[%clk 00:01:41]} 44. Ra8 {[%emt 00:00:02] [%clk 00:02:56]} Kb5 {[%emt 00:00:27]
[%clk 00:01:24]} 45. e4 {[%emt 00:00:04] [%clk 00:03:02]} Rc3 {[%emt 00:00:41]
[%clk 00:00:52]} 46. g5 {[%emt 00:00:54] [%clk 00:02:19]} fxg5+ {[%emt 00:00:01]
[%clk 00:01:00]} 47. Kxg5 {[%emt 00:00:03] [%clk 00:02:27]} Rxf3 {[%emt
00:00:48] [%clk 00:00:22]} 48. Kxg6 {[%emt 00:00:01] [%clk 00:02:36]} Kb4 {[%emt
00:00:11] [%clk 00:00:22]} 49. Kxh5 {[%emt 00:00:09] [%clk 00:02:37]} Re3 {[%emt
00:00:11] [%clk 00:00:20]} 50. Kg6 {[%emt 00:00:10] [%clk 00:02:37]} Rxe4 {[%emt
00:00:04] [%clk 00:00:26]} 51. h5 {[%clk 00:02:46]} Rg4+ {[%emt 00:00:16] [%clk
00:00:20]} 52. Kf6 {[%emt 00:00:07] [%clk 00:02:50]} Rh4 {[%emt 00:00:05] [%clk
00:00:25]} 53. Kg6 {[%emt 00:00:04] [%clk 00:02:56]} Rg4+ {[%emt 00:00:18] [%clk
00:00:18]} 54. Kf6 {[%emt 00:00:03] [%clk 00:03:03]} Kb3 {[%emt 00:00:07] [%clk
00:00:21]} 55. Rxa3+ {[%emt 00:00:10] [%clk 00:03:03]} Kxa3 {[%emt 00:00:01]
[%clk 00:00:30]} 56. h6 {[%clk 00:03:11]} Rh4 {[%emt 00:00:02] [%clk 00:00:38]}
57. Kg7 {[%emt 00:00:02] [%clk 00:03:20]} Rxh6 {[%emt 00:00:01] [%clk 00:00:47]}
58. Kxh6 {[%emt 00:00:01] [%clk 00:03:28]} 1/2-1/2

[Site "Europe Echecs"]

[Event "Championnat d'Europe Rapide"]
[Date "2024.12.07"]
[White "Ghimpu, Samuel-Timotei"]
[Black "Redzisz, Michal"]
[WhiteElo "2475"]
[BlackElo "2263"]
[Round "3.51"]
[Result "1-0"]
[TimeControl "900+10"]

1. e4 {[%emt 00:00:01] [%clk 00:15:18]} c6 {[%emt 00:00:03] [%clk 00:15:19]} 2.
d4 {[%clk 00:15:26]} d5 {[%emt 00:00:01] [%clk 00:15:29]} 3. e5 {[%clk
00:15:35]} Bf5 {[%emt 00:00:02] [%clk 00:15:37]} 4. Nf3 {[%clk 00:15:43]} e6
{[%emt 00:00:01] [%clk 00:15:46]} 5. Be2 {[%clk 00:15:52]} c5 {[%emt 00:00:11]
[%clk 00:15:46]} 6. c3 {[%emt 00:00:02] [%clk 00:16:00]} Nc6 {[%emt 00:00:54]
[%clk 00:15:02]} 7. O-O {[%emt 00:00:02] [%clk 00:16:08]} h6 {[%emt 00:00:12]
[%clk 00:15:00]} 8. Be3 {[%emt 00:00:20] [%clk 00:15:57]} g5 {[%emt 00:00:12]
[%clk 00:14:58]} 9. dxc5 {[%emt 00:00:25] [%clk 00:15:42]} Bg7 {[%emt 00:00:48]
[%clk 00:14:20]} 10. Nd4 {[%emt 00:00:59] [%clk 00:14:53]} Nge7 {[%emt
00:03:55]} 11. f4 {[%clk 00:14:15]} gxf4 {[%emt 00:02:58]} 12. Bxf4 {[%clk
00:13:40]} Bxe5 {[%emt 00:01:07] [%clk 00:08:23]} 13. Bxe5 {[%emt 00:00:45]
[%clk 00:13:06]} Nxe5 {[%emt 00:00:01] [%clk 00:08:31]} 14. Bb5+ {[%emt
00:01:23] [%clk 00:11:52]} N5c6 {[%emt 00:00:16] [%clk 00:08:25]} 15. Qe2 {[%emt
00:00:56] [%clk 00:11:07]} O-O {[%emt 00:01:25] [%clk 00:07:10]} 16. Bxc6 {[%emt
00:00:59] [%clk 00:10:18]} bxc6 {[%emt 00:00:05] [%clk 00:07:15]} 17. Nd2 {[%emt
00:00:47] [%clk 00:09:42]} Qc7 {[%emt 00:05:45] [%clk 00:01:40]} 18. Qe3 {[%emt
00:03:22] [%clk 00:06:29]} Kh7 {[%emt 00:00:33] [%clk 00:01:17]} 19. Rf4 {[%emt
00:01:21] [%clk 00:05:18]} Rg8 {[%emt 00:00:50] [%clk 00:00:38]} 20. Raf1 {[%emt
00:00:07] [%clk 00:05:20]} Rg6 {[%emt 00:00:24] [%clk 00:00:24]} 21. N2f3 {[%emt
00:00:35] [%clk 00:04:55]} Rag8 {[%emt 00:00:02] [%clk 00:00:33]} 22. g3 {[%emt
00:00:22] [%clk 00:04:43]} Rg4 {[%emt 00:00:09] [%clk 00:00:34]} 23. Ne5 {[%emt
00:00:19] [%clk 00:04:34]} Rxf4 {[%emt 00:00:17] [%clk 00:00:28]} 24. Qxf4
{[%emt 00:00:57] [%clk 00:03:46]} f6 {[%emt 00:00:11] [%clk 00:00:27]} 25. Nexc6
{[%emt 00:00:57] [%clk 00:02:59]} e5 {[%emt 00:00:01] [%clk 00:00:35]} 26. Qe3
{[%emt 00:00:22] [%clk 00:02:48]} Bh3 {[%emt 00:00:15] [%clk 00:00:29]} 27. Rxf6
{[%emt 00:00:13] [%clk 00:02:46]} Ng6 {[%emt 00:00:16] [%clk 00:00:23]} 28. Nf3
{[%emt 00:01:34] [%clk 00:01:22]} Kg7 {[%clk 00:00:32]} 29. Rd6 {[%emt 00:00:22]
[%clk 00:01:10]} Rf8 {[%emt 00:00:20] [%clk 00:00:22]} 30. Ncxe5 {[%emt
00:00:17] [%clk 00:01:03]} 1-0

[Site "Europe Echecs"]